bitfinex-derivatives/quotes_BNBF0:USTF0_20250424
["timestamp","ask_amount","ask_price","bid_price","bid_amount"]
[1745492112266,1.2784989,599.12,597.39,1.453]
[1745492113566,0.29095287,599.11,597.39,1.453]
[1745492113767,1.2784989,599.1,597.39,1.453]
[1745492115870,1.2784989,599.13,597.39,1.453]
[1745492116568,0.29094436,599.12,597.39,1.453]
[1745492118165,1.2784989,599.13,597.39,1.453]
[1745492118371,1.2784989,599.51,597.39,1.453]
[1745492118572,0.29092611,599.12,597.39,1.453]
[1745492118876,1.2784989,599.51,597.39,1.453]
[1745492120671,0.29088113,599.5,597.39,1.453]
[1745492121370,1.2784989,599.51,597.39,1.453]
[1745492122670,0.29088113,599.5,597.39,1.453]
[1745492124271,1.2784989,599.51,597.39,1.453]
[1745492124672,0.29088113,599.49,597.39,1.453]
[1745492125773,1.2784989,599.4,597.39,1.453]
[1745492126776,1.2784989,599.4,597.4,0.30727648]
[1745492127476,1.2784989,599.4,597.39,1.453]
[1745492127775,0.2908945,599.39,597.4,0.30727733]
[1745492128876,0.2908945,599.39,597.39,1.7438945]
[1745492129176,0.2908945,599.39,597.4,0.30727173]
[1745492129380,1.2784989,599.23,597.4,0.30727173]
[1745492130575,1.2784989,599.23,597.41,0.30726696]
[1745492130774,1.2784989,599.23,597.4,0.30726696]
[1745492130976,1.2784989,599.23,597.42,0.30726696]
[1745492131176,1.2784989,599.23,597.43,0.30726696]
[1745492131375,1.2784989,599.23,597.39,1.7438945]
[1745492131376,1.2784989,599.23,597.4,0.30726696]
[1745492131575,1.2784989,599.23,597.41,0.30726696]
[1745492131776,1.2784989,599.23,597.42,0.30726696]
[1745492132081,1.2784989,599.23,597.4,0.30726696]
[1745492132281,1.2784989,599.23,597.41,0.30726696]
[1745492132482,1.2784989,599.23,597.4,0.30726696]
[1745492132882,1.2784989,599.24,597.4,0.30726696]
[1745492134687,0.29089693,599.23,597.4,0.30726696]
[1745492135082,1.2784989,598.88,597.4,0.30726696]
[1745492135283,1.2784989,598.88,597.39,1.74389693]
[1745492135483,1.2784989,598.88,597.4,0.3072553]
[1745492137583,0.29089693,599.23,597.4,0.3072553]
[1745492137584,1.2784989,599.21,597.4,0.3072553]
[1745492139484,1.2784989,599.21,597.0,0.3072553]
[1745492139787,1.2784989,599.21,597.01,0.3072553]
[1745492139988,1.2784989,599.21,596.99,1.06406438]
[1745492140184,1.2784989,599.21,597.0,0.3072569]
[1745492140383,1.2784989,599.23,597.0,0.3072569]
[1745492140583,1.2784989,599.23,596.99,0.3072569]
[1745492140786,0.29094922,599.2,597.01,0.29094922]
[1745492140983,0.29094922,599.2,597.02,0.3072569]
[1745492142291,1.2784989,599.23,597.02,0.3072569]
[1745492142484,1.2784989,599.23,596.99,0.3072569]
[1745492142688,0.29092247,599.19,597.01,0.29092976]
[1745492142889,0.29092247,599.19,597.02,0.3072569]
[1745492143084,0.29092247,599.19,597.03,0.3072569]
[1745492143289,0.29092247,599.19,597.06,1.06406438]
[1745492143485,0.29092247,599.19,597.07,0.3072023]
[1745492143687,0.29092247,599.19,597.08,0.3072023]
[1745492143885,0.29092247,599.19,597.09,0.3072023]
[1745492144087,0.29092247,599.19,597.1,0.3072023]
[1745492144291,0.29092247,599.19,597.11,0.3072023]
[1745492144592,0.29092247,599.19,597.12,0.3072023]
[1745492144787,0.29092247,599.19,597.06,1.06406438]
[1745492145103,0.29092247,599.19,597.07,0.30720096]
[1745492145292,1.2784989,599.33,597.08,0.30720096]
[1745492145491,1.2784989,599.33,597.06,1.06406438]
[1745492145492,1.2784989,599.33,597.09,0.30720096]
[1745492145686,0.29090423,599.18,597.1,0.30720096]
[1745492145889,1.2784989,599.33,597.11,0.30720096]
[1745492146191,1.2784989,599.33,597.12,0.30720096]
[1745492146392,1.2784989,599.33,597.13,0.30720096]
[1745492146589,0.29090423,599.32,597.14,0.30720096]
[1745492146789,1.2784989,599.29,597.23,1.06406438]
[1745492146991,1.2784989,599.29,597.24,0.30720096]
[1745492147190,1.2784989,599.29,597.25,0.30720096]
[1745492147391,1.2784989,599.29,597.26,0.30720096]
[1745492147593,1.2784989,599.29,597.27,0.30720096]
[1745492147797,1.2784989,599.29,597.28,0.30720096]
[1745492148094,1.2784989,599.29,597.29,0.30720096]
[1745492148286,1.2784989,599.29,597.3,0.30720096]
[1745492148487,1.2784989,599.29,597.31,0.30720096]
[1745492148686,1.2784989,599.29,597.32,0.30720096]
[1745492148888,1.2784989,599.29,597.33,0.30720096]
[1745492149094,1.2784989,599.04,597.37,1.06406438]
[1745492149289,1.2784989,599.04,597.38,0.30720096]
[1745492149492,1.2784989,599.04,597.37,1.06406438]
[1745492149686,0.2909018,599.03,597.38,0.30719856]
[1745492149890,0.2909018,599.03,597.39,0.30719856]
[1745492150088,0.2909018,599.03,597.4,0.30719856]
[1745492150389,0.2909018,599.03,597.41,0.30719856]
[1745492150589,0.2909018,599.03,597.38,0.30719856]
[1745492150893,0.2909018,599.03,597.39,0.30719856]
[1745492151095,0.2909018,599.03,597.36,1.06406438]
[1745492151293,1.2784989,599.05,597.37,0.30720733]
[1745492151694,0.29090423,599.02,597.37,0.30720733]
[1745492154190,0.29090423,599.02,597.33,0.30720733]
[1745492154389,0.29090423,599.02,597.32,1.06406438]
[1745492154390,1.2784989,599.07,597.34,0.30719881]
[1745492154690,1.2784989,599.07,597.35,0.30719881]
[1745492154894,1.2784989,599.07,597.33,0.30719881]
[1745492155195,1.2784989,599.07,597.34,0.30719881]
[1745492155396,1.2784989,599.07,597.33,0.30719881]
[1745492155591,0.29090666,599.06,597.34,0.30719881]
[1745492155897,0.29090666,599.06,597.32,1.06406438]
[1745492156097,0.29090666,599.06,597.33,0.30719974]
[1745492156493,0.29090666,599.06,597.29,0.30719974]
[1745492156696,0.29090666,599.06,597.3,0.30719974]
[1745492156897,0.29090666,599.06,597.29,0.30719974]
[1745492157298,1.2784989,599.32,597.29,0.30719974]
[1745492157498,1.2784989,599.32,597.22,1.06406438]
[1745492157794,0.29088113,599.05,597.28,0.29088113]
[1745492157991,1.2784989,599.32,597.28,0.29088113]
[1745492158191,1.2784989,599.32,597.29,0.30720257]
[1745492158598,0.29088721,599.31,597.29,0.30720257]
[1745492159094,0.29088721,599.31,597.3,0.30720634]
[1745492159397,0.29088721,599.31,597.31,0.30720634]
[1745492159598,0.29088721,599.31,597.29,0.30720634]
[1745492159798,0.29088721,599.31,597.3,0.30720634]
[1745492159997,0.29088721,599.31,597.29,0.30720634]
[1745492160198,0.29088721,599.31,597.3,0.30720634]
[1745492160392,1.2784989,599.32,597.31,0.30720634]
[1745492160597,1.2784989,599.32,597.29,1.318]
[1745492160794,1.2784989,599.32,597.3,0.30720446]
[1745492161398,2.17522383,599.99,597.3,0.30720446]
[1745492161399,1.2784989,599.34,597.3,0.30720446]
[1745492161600,0.29087991,599.31,597.3,0.30720446]
[1745492161902,0.29087991,599.31,597.3,1.56620446]
[1745492162201,1.2784989,599.34,597.31,0.30720446]
[1745492163599,1.2784989,599.32,597.31,0.30720446]
[1745492164801,1.2784989,599.32,597.3,1.259]
[1745492165000,1.2784989,599.32,597.31,0.3072067]
[1745492165500,1.2784989,599.19,597.31,0.3072067]
[1745492168002,1.2784989,599.19,597.3,1.259]
[1745492168205,1.2784989,599.12,597.31,1.37127059]
[1745492168397,1.2784989,599.12,597.32,0.30720621]
[1745492168702,1.2784989,599.12,597.33,0.30720621]
[1745492168901,1.2784989,599.12,597.32,0.30720621]
[1745492169100,1.2784989,599.12,597.33,0.30720621]
[1745492169297,1.2784989,599.12,597.34,0.30720621]
[1745492169496,1.2784989,599.12,597.35,0.30720621]
[1745492169698,1.2784989,599.12,597.36,0.3072068]
[1745492169998,1.2784989,599.12,597.37,0.3072068]
[1745492170195,1.2784989,599.12,597.32,0.3072068]
[1745492170400,1.2784989,599.12,597.33,0.3072068]
[1745492170601,1.2784989,599.12,597.34,0.3072068]
[1745492170801,1.2784989,598.99,597.38,1.06406438]
[1745492171001,1.2784989,598.99,597.39,0.3072068]
[1745492172502,1.2784989,598.99,597.4,0.30720322]
[1745492172703,1.2784989,598.99,597.39,0.30720322]
[1745492173003,1.2784989,598.99,597.4,0.30720322]
[1745492173196,1.2784989,598.99,597.39,0.30720322]
[1745492173498,1.2784989,598.99,597.4,0.30720322]
[1745492173702,1.2784989,598.99,597.39,0.30720322]
[1745492173904,1.2784989,599.16,597.4,0.30720322]
[1745492174202,1.2784989,599.16,597.41,0.30720322]
[1745492174397,1.2784989,599.16,597.42,0.3071925]
[1745492174603,1.2784989,599.16,597.43,0.3071925]
[1745492174804,1.2784989,599.16,597.37,0.3071925]
[1745492175004,1.2784989,599.16,597.38,0.3071925]
[1745492175206,1.2784989,599.16,597.37,0.3071925]
[1745492175506,1.2784989,599.16,597.38,0.3071925]
[1745492175700,1.2784989,599.16,597.37,0.3071925]
[1745492175899,1.2784989,599.16,597.39,0.3071925]
[1745492176101,1.2784989,599.16,597.4,0.3071925]
[1745492176305,1.2784989,599.16,597.41,0.3071925]
[1745492176601,1.2784989,599.16,597.37,0.3071925]
[1745492176802,1.2784989,599.16,597.38,0.3071925]
[1745492177001,1.2784989,599.16,597.36,1.319]
[1745492177002,1.2784989,599.16,597.37,0.3071925]
[1745492177301,2.17522383,600.11,597.36,1.319]
[1745492177302,1.2784989,599.2,597.38,0.3071925]
[1745492177502,1.2784989,599.2,597.39,0.30719613]
[1745492177805,1.2784989,599.2,597.4,0.30719613]
[1745492178105,1.2784989,599.2,597.37,0.30719613]
[1745492178307,1.2784989,599.2,597.41,0.30719613]
[1745492179208,1.2784989,599.2,597.37,0.30719613]
[1745492180003,2.17522383,599.33,597.37,0.30719613]
[1745492180004,1.2784989,599.19,597.37,0.30719613]
[1745492180205,1.2784989,599.19,597.4,1.06406438]
[1745492180403,1.2784989,599.19,597.41,0.30719613]
[1745492181509,0.29086289,599.18,597.41,0.30719613]
[1745492182706,0.29086289,599.18,597.4,0.30719613]
[1745492182907,0.29086289,599.18,597.41,0.30719613]
[1745492183206,0.29086289,599.18,597.42,0.30719613]
[1745492183404,0.29086289,599.18,597.4,0.30719613]
[1745492183606,0.29086289,599.18,597.41,0.30719613]
[1745492183810,0.29086289,599.18,597.4,0.30719613]
[1745492184412,0.29086289,599.18,597.39,0.30719613]
[1745492184608,0.29086289,599.18,597.4,0.30719613]
[1745492184808,0.29086289,599.18,597.39,0.30719613]
[1745492185012,0.29086289,599.18,597.4,0.30719613]
[1745492185210,0.29086289,599.18,597.41,0.30719613]
[1745492185411,0.29086289,599.18,597.42,0.30714535]
[1745492185610,0.29086289,599.18,597.39,0.30714535]
[1745492185811,0.29086289,599.18,597.4,0.30714535]
[1745492186014,0.29086289,599.18,597.41,0.30714535]
[1745492186211,0.29086289,599.18,597.39,0.30714535]
[1745492186415,0.29086289,599.18,597.4,0.30714535]
[1745492186611,0.29086289,599.18,597.39,0.30714535]
[1745492186813,0.29086289,599.18,597.41,0.30714535]
[1745492187012,0.29086289,599.18,597.42,0.30714535]
[1745492187220,0.29086289,599.18,597.39,0.30714535]
[1745492187516,0.29086289,599.18,597.4,0.30714535]
[1745492187717,0.29086289,599.18,597.39,0.30714535]
[1745492188015,0.29086289,599.18,597.4,0.30714535]
[1745492188311,0.29086289,599.18,597.41,0.30714535]
[1745492190011,0.29086289,599.18,597.42,0.30712239]
[1745492190210,0.29086289,599.18,597.41,0.30712239]
[1745492190415,0.29086289,599.18,597.42,0.30712239]
[1745492190615,0.29086289,599.18,597.4,1.213]
[1745492190616,0.29086289,599.18,597.41,0.30712239]
[1745492190813,0.29086289,599.18,597.42,0.30712239]
[1745492191014,0.29086289,599.18,597.41,0.30712239]
[1745492191216,0.29086289,599.18,597.42,0.30712239]
[1745492191418,0.29086289,599.18,597.4,1.213]
[1745492191419,0.29086289,599.18,597.41,1.38312239]
[1745492191618,0.29086289,599.18,597.42,0.30712239]
[1745492193520,1.2784989,599.65,597.42,0.30712239]
[1745492193921,1.2784989,599.69,597.42,0.30712239]
[1745492194318,1.2784989,599.69,597.43,0.30713414]
[1745492194514,1.2784989,599.69,597.42,0.30713414]
[1745492194719,0.29078148,599.68,597.43,0.30713881]
[1745492194917,0.29078148,599.68,597.42,0.30713881]
[1745492195120,0.29078148,599.68,597.43,0.30713881]
[1745492195320,0.29078148,599.68,597.42,0.30713881]
[1745492196326,1.2784989,599.69,597.42,0.30713881]
[1745492196728,1.2784989,599.51,597.42,0.30713881]
[1745492197526,0.29082036,599.5,597.42,0.30713881]
[1745492199227,0.29082036,599.5,597.41,2.32782036]
[1745492199427,1.2784989,599.56,597.42,0.30716795]
[1745492199623,1.2784989,599.56,597.41,2.037]
[1745492200327,1.2784989,599.56,597.42,0.30716748]
[1745492200526,0.29081428,599.55,597.42,0.30716748]
[1745492202531,0.29081428,599.55,597.41,2.32781428]
[1745492202726,0.29081428,599.55,597.42,0.30721146]
[1745492204334,1.2784989,599.45,597.42,0.30721146]
[1745492206634,0.29084952,599.44,597.42,0.30721146]
[1745492206837,1.2784989,599.3,597.42,0.30721146]
[1745492208138,1.2784989,599.3,597.42,1.26021146]
[1745492208438,1.2784989,599.3,597.43,0.30721146]
[1745492208837,1.2784989,599.3,597.44,0.30719808]
[1745492209038,1.2784989,599.3,597.43,0.30719808]
[1745492209239,1.2784989,599.3,597.44,0.30719808]
[1745492209441,1.2784989,599.3,597.43,0.30719808]
[1745492209638,0.29086654,599.29,597.44,0.30719808]
[1745492209936,0.29086654,599.29,597.45,0.30719808]
[1745492210138,0.29086654,599.29,597.46,0.30719808]
[1745492210339,0.29086654,599.29,597.47,0.30719808]
[1745492210539,0.29086654,599.29,597.48,0.30719808]
[1745492210740,0.29086654,599.29,597.43,0.30719808]
[1745492210940,0.29086654,599.29,597.44,0.30719808]
[1745492211138,0.29086654,599.29,597.43,0.30719808]
[1745492211338,0.29086654,599.29,597.45,0.30719808]
[1745492211537,0.29086654,599.29,597.46,0.30719808]
[1745492211738,0.29086654,599.29,597.47,0.30719808]
[1745492211940,0.29086654,599.29,597.48,0.30719808]
[1745492212235,0.29086654,599.29,597.49,0.30719808]
[1745492212444,0.29086654,599.29,597.43,0.30719808]
[1745492212635,0.29086654,599.29,597.44,0.30719808]
[1745492212936,0.29086654,599.29,597.45,0.30719808]
[1745492213134,0.29086654,599.29,597.43,0.30719808]
[1745492213435,0.29086654,599.29,597.44,0.30719808]
[1745492213637,0.29086654,599.29,597.45,0.30719729]
[1745492213942,0.29086654,599.29,597.43,0.30719729]
[1745492214241,0.29086654,599.29,597.44,0.30719729]
[1745492214537,0.29086654,599.29,597.42,1.24386654]
[1745492214538,1.2784989,599.41,597.43,0.30719729]
[1745492214734,1.2784989,599.41,597.43,0.59805046]
[1745492214735,0.29085317,599.28,597.43,0.59805046]
[1745492214937,0.29085317,599.28,597.44,0.30719729]
[1745492215140,1.2784989,599.4,597.44,0.30719729]
[1745492215339,1.2784989,599.4,597.43,0.29085317]
[1745492215642,1.2784989,599.4,597.44,0.30719702]
[1745492216644,0.29084102,599.39,597.44,0.30719702]
[1745492216940,0.29084102,599.39,597.43,0.29085317]
[1745492217137,0.29084102,599.39,597.45,1.373]
[1745492217341,1.2784989,599.4,597.46,0.30718897]
[1745492218043,1.2784989,599.41,597.46,0.30718897]
[1745492218644,0.29083737,599.4,597.46,0.30718897]
[1745492220046,0.29083737,599.4,597.45,1.373]
[1745492220245,0.29083737,599.4,597.46,0.30718901]
[1745492220446,1.2784989,599.41,597.46,0.30718901]
[1745492221848,1.2784989,599.35,597.46,0.30718901]
[1745492223642,0.29084466,599.34,597.46,0.30718901]
[1745492224146,0.29084466,599.34,597.45,1.66384466]
[1745492224346,1.2784989,599.21,597.47,1.475]
[1745492224542,1.2784989,599.21,597.48,0.30719785]
[1745492225048,1.2784989,599.21,597.49,1.074]
[1745492225347,1.2784989,599.21,597.5,0.30719785]
[1745492225747,1.2784989,599.21,597.49,1.074]
[1745492225948,1.2784989,599.21,597.5,0.30719695]
[1745492226549,1.2784989,599.17,597.5,0.30719695]
[1745492227251,1.2784989,599.17,597.49,1.074]
[1745492227550,1.2784989,599.17,597.5,0.30719676]
[1745492227746,0.29086168,599.16,597.5,0.30719676]
[1745492228650,0.29086168,599.16,597.51,0.953]
[1745492228850,0.29086168,599.16,597.52,0.30719676]
[1745492229251,1.2784989,599.17,597.52,0.30719676]
[1745492230655,0.29083494,599.16,597.52,0.30719676]
[1745492231457,1.2784989,599.15,597.52,0.30719676]
[1745492234256,1.2784989,599.15,597.5,0.30719676]
[1745492234454,0.29083494,599.16,597.51,0.30719676]
[1745492234657,0.29083494,599.16,597.5,0.30719676]
[1745492234855,0.29083494,599.16,597.51,0.30706847]
[1745492235058,0.29083494,599.16,597.5,0.30706847]
[1745492235354,1.2784989,599.86,597.5,0.30706847]
[1745492235556,1.2784989,599.86,597.51,0.30706847]
[1745492235759,0.29072439,599.22,597.52,0.30706847]
[1745492235958,0.29072439,599.22,597.53,0.30706847]
[1745492236158,1.2784989,599.86,597.5,0.30706847]
[1745492236356,1.2784989,599.86,597.51,0.30706847]
[1745492236555,1.2784989,599.86,597.5,0.30706847]
[1745492236758,0.29072439,599.85,597.5,0.30706847]
[1745492237060,1.2784989,599.71,597.5,0.30706847]
[1745492238658,1.2784989,599.71,597.47,1.475]
[1745492238659,1.2784989,599.71,597.48,0.30706847]
[1745492239661,0.29074503,599.7,597.49,0.29074503]
[1745492239860,0.29074503,599.7,597.5,0.30706847]
[1745492240962,0.29074503,599.7,597.49,0.29074503]
[1745492241164,0.29074503,599.7,597.5,0.30707248]
[1745492241363,1.2784989,599.76,597.5,0.30707248]
[1745492241664,1.2784989,599.76,597.51,0.30707248]
[1745492241856,1.2784989,599.76,597.48,0.30707248]
[1745492242058,1.2784989,599.76,597.49,0.30707248]
[1745492242260,1.2784989,599.76,597.48,0.30707248]
[1745492242564,1.2784989,599.76,597.49,0.30707262]
[1745492242763,0.29073896,599.75,597.5,0.30707262]
[1745492247068,0.29073896,599.75,597.49,0.29073896]
[1745492247265,0.29073896,599.75,597.5,0.30708539]
[1745492247462,1.2784989,599.95,597.5,0.30708539]
[1745492247669,1.2784989,599.95,597.49,0.29073289]
[1745492247869,1.2784989,599.94,597.5,0.30708539]
[1745492248664,0.29073167,599.93,597.5,0.30708539]
[1745492250272,1.2784989,599.91,597.5,0.30708539]
[1745492250672,1.2784989,599.91,597.51,0.30708539]
[1745492250872,1.2784989,599.91,597.48,0.30708539]
[1745492251167,1.2784989,599.91,597.49,0.30708539]
[1745492251471,1.2784989,599.91,597.5,0.30708539]
[1745492251672,0.29073775,599.9,597.5,1.083]
[1745492251873,0.29073775,599.9,597.51,0.30709762]
[1745492252074,1.2784989,599.73,597.51,0.30709762]
[1745492252971,1.2784989,599.73,597.5,1.083]
[1745492253774,1.2784989,599.73,597.51,0.30709965]
[1745492254575,0.29075839,599.72,597.51,0.30709965]
[1745492254869,2.17522383,599.63,597.51,0.30709965]
[1745492255171,1.2784989,599.51,597.51,0.30709965]
[1745492256573,0.29075839,599.72,597.5,1.37375839]
[1745492256774,0.29075839,599.72,597.51,0.30712632]
[1745492258074,0.29075839,599.72,597.5,1.37375839]
[1745492258273,0.29075839,599.72,597.51,0.3071266]
[1745492258673,1.27288941,599.42,597.51,0.3071266]
[1745492259777,0.29079848,599.41,597.51,0.3071266]
[1745492261177,0.29079848,599.41,597.52,0.30712307]
[1745492261469,0.29079848,599.41,597.5,1.37379848]
[1745492261470,0.29079848,599.41,597.53,0.30712307]
[1745492261670,0.29079848,599.41,597.51,0.30712307]
[1745492261871,1.27288941,599.38,597.52,0.30712307]
[1745492262070,1.27288941,599.38,597.51,0.30712307]
[1745492262270,1.27288941,599.38,597.52,0.30712307]
[1745492262475,1.27288941,599.38,597.51,0.30712307]
[1745492262675,1.27288941,599.38,597.5,1.083]
[1745492262872,1.27288941,599.38,597.51,0.30712146]
[1745492263777,0.29080334,599.37,597.51,0.29080334]
[1745492263971,0.29080334,599.37,597.52,0.30712146]
[1745492264679,1.56369275,599.37,597.52,0.30712146]
[1745492265377,1.27288941,599.37,597.52,0.30712146]
[1745492265571,1.27288941,599.37,597.48,0.30712146]
[1745492265776,0.29080334,599.36,597.51,0.29080334]
[1745492265976,0.29080334,599.36,597.52,0.30712146]
[1745492267280,0.29080334,599.36,597.51,0.29080334]
[1745492267481,0.29080334,599.36,597.52,0.30711273]
[1745492268381,1.27288941,599.41,597.52,0.30711273]
[1745492268579,1.27288941,599.41,597.53,0.30711273]
[1745492268780,1.27288941,599.41,597.49,0.30711273]
[1745492268981,1.27288941,599.41,597.5,0.30711273]
[1745492269280,1.27288941,599.41,597.51,0.30711273]
[1745492269475,1.27288941,599.41,597.52,0.30711273]
[1745492269677,0.29080213,599.4,597.53,0.30711273]
[1745492269881,0.29080213,599.4,597.51,0.29080213]
[1745492269882,0.29080213,599.4,597.52,0.30711273]
[1745492270182,0.29080213,599.4,597.53,0.30711273]
[1745492270376,0.29080213,599.4,597.52,0.30711273]
[1745492270579,0.29080213,599.4,597.53,0.30711273]
[1745492270778,0.29080213,599.4,597.54,0.30711273]
[1745492270977,0.29080213,599.4,597.52,0.30711273]
[1745492271179,0.29080213,599.4,597.53,0.30711273]
[1745492271380,0.29080213,599.4,597.48,1.043]
[1745492271381,1.27288941,599.44,597.54,0.30711273]
[1745492271680,1.27288941,599.44,597.55,0.30711273]
[1745492271881,0.29079848,599.43,597.56,0.30710884]
[1745492272081,0.29079848,599.43,597.55,0.30710884]
[1745492273484,0.29079848,599.43,597.56,0.30710761]
[1745492273681,0.29079848,599.43,597.57,0.30710761]
[1745492273881,0.29079848,599.43,597.55,0.30710761]
[1745492274079,0.29079848,599.43,597.56,0.30710761]
[1745492274279,0.29079848,599.43,597.55,0.30710761]
[1745492274483,1.27288941,599.72,597.56,0.30710761]
[1745492274779,0.29075718,599.42,597.55,0.30710761]
[1745492275085,1.27288941,599.72,597.56,0.30710761]
[1745492275284,1.27288941,599.72,597.57,0.30710761]
[1745492275486,1.27288941,599.72,597.55,0.30710761]
[1745492275690,0.29075718,599.71,597.55,0.30710761]
[1745492275986,0.29075718,599.71,597.55,1.76210761]
[1745492276186,0.29075718,599.71,597.56,0.30710761]
[1745492276387,0.29075718,599.71,597.55,1.455]
[1745492276587,0.29075718,599.71,597.56,0.30708459]
[1745492276889,1.27288941,599.64,597.56,0.30708459]
[1745492277790,0.29074139,599.63,597.56,0.30708459]
[1745492280390,1.27288941,599.64,597.56,0.30708459]
[1745492280691,0.29074868,599.62,597.56,0.30708459]
[1745492283386,1.27288941,599.2,597.61,1.05499984]
[1745492283591,1.27288941,599.2,597.62,0.30708459]
[1745492285100,1.27288941,599.2,597.61,1.05499984]
[1745492285393,1.27288941,599.2,597.62,0.30710215]
[1745492285994,1.27288941,599.2,597.62,1.36210199]
[1745492286193,1.27288941,599.17,597.63,0.30710215]
[1745492286593,1.27288941,599.17,597.64,0.92]
[1745492286793,0.29081185,599.16,597.65,0.30710215]
[1745492288296,0.29081185,599.16,597.66,0.30710175]
[1745492288596,1.56370126,599.16,597.67,0.30710175]
[1745492288792,1.56370126,599.16,597.68,0.30710175]
[1745492288992,1.56370126,599.16,597.69,0.30710175]
[1745492289295,1.56370126,599.16,597.7,0.30710175]
[1745492289498,1.27288941,599.16,597.65,0.30710175]
[1745492289696,1.27288941,599.16,597.66,1.49210175]
[1745492289893,1.27288941,599.16,597.67,0.3071077]
[1745492290697,0.2908082,599.15,597.67,0.3071077]
[1745492292398,1.27288941,599.19,597.67,0.3071077]
[1745492292698,1.27288941,599.19,597.66,2.328]
[1745492292996,0.29083129,599.18,597.66,2.328]
[1745492293390,0.29083129,599.18,597.66,3.775]
[1745492295402,1.27288941,599.21,597.66,3.775]
[1745492295901,0.29083858,599.17,597.66,3.775]
[1745492298400,1.27288941,599.29,597.67,0.30720238]
[1745492298903,1.27288941,599.31,597.67,0.30720238]
[1745492299102,1.27288941,599.31,597.66,3.775]
[1745492299302,1.27288941,599.31,597.67,0.3071901]
[1745492299706,0.29083615,599.3,597.67,0.3071901]
[1745492300702,1.27288941,599.07,597.67,0.3071901]
[1745492302301,1.27288941,599.07,597.66,3.775]
[1745492302498,1.27288941,599.07,597.67,0.30719197]
[1745492302701,0.29086532,599.06,597.67,0.30719197]
[1745492303706,0.29086532,599.06,597.66,3.775]
[1745492304301,1.27288941,599.07,597.66,3.775]
[1745492305706,0.29087505,599.06,597.66,3.775]
[1745492307410,1.27288941,599.22,597.66,3.775]
[1745492308707,0.29085682,599.21,597.66,3.775]
[1745492309309,0.29085682,599.21,597.66,4.703]
[1745492310811,0.29085682,599.21,597.67,0.3071987]
[1745492313317,1.56374623,599.21,597.67,0.3071987]
[1745492313621,1.56374623,599.21,597.66,3.518]
[1745492313622,1.27288941,599.21,597.66,3.518]
[1745492313822,0.29083129,599.2,597.67,0.30718929]
[1745492314122,0.29083129,599.2,597.67,1.49218929]
[1745492314323,0.29083129,599.2,597.68,0.30718929]
[1745492314730,1.27288941,599.13,597.68,0.30718929]
[1745492316922,1.27288941,599.13,597.67,1.185]
[1745492317122,1.27288941,599.13,597.68,0.30719152]
[1745492317318,1.27288941,599.12,597.68,0.30719152]
[1745492320025,1.27288941,599.06,597.68,0.30719152]
[1745492320519,1.27288941,599.06,597.68,1.67619152]
[1745492320725,0.29084831,599.05,597.69,0.30719152]
[1745492321020,0.29084831,599.05,597.68,1.369]
[1745492322427,1.27288941,599.06,597.68,1.369]
[1745492323425,0.59655779,605.17,597.68,1.369]
[1745492323426,1.27288941,599.2,597.68,1.369]
[1745492323725,0.29084709,599.05,597.68,1.369]
[1745492323926,1.27288941,599.2,597.68,1.369]
[1745492325428,0.29083008,599.19,597.68,1.369]
[1745492326126,1.27288941,599.18,597.68,1.369]
[1745492327227,1.27288941,599.18,597.69,0.30716733]
[1745492327627,1.27288941,599.18,597.68,1.369]
[1745492328624,0.29082522,599.17,597.68,1.369]
[1745492331323,1.27288941,599.31,597.68,1.369]
[1745492331630,0.29080942,599.16,597.68,1.369]
[1745492331929,1.27288941,599.31,597.68,1.369]
[1745492332130,1.27288941,599.4,597.68,1.369]
[1745492333829,1.27288941,599.38,597.68,1.369]
[1745492335728,0.29078876,599.37,597.68,1.369]
[1745492337433,1.27288941,599.51,597.68,1.369]
[1745492337637,0.29078026,599.36,597.68,1.369]
[1745492337932,1.27288941,599.51,597.68,1.369]
[1745492338731,0.29078026,599.5,597.68,1.369]
[1745492339836,1.27288941,599.45,597.68,1.369]
[1745492340836,0.2907997,599.44,597.68,1.369]
[1745492343333,1.27288941,599.45,597.68,1.369]
[1745492343936,1.27288941,599.39,597.68,1.369]
[1745492344535,0.29082886,599.38,597.68,1.369]
[1745492344933,0.29082886,599.38,597.68,2.532]
[1745492345743,0.29082886,599.38,597.68,3.805]
[1745492346444,1.27288941,599.39,597.68,3.805]
[1745492346645,1.27288941,599.13,597.69,0.3071897]
[1745492347444,1.27288941,599.13,597.68,2.436]
[1745492347649,0.29084588,599.12,597.68,2.436]
[1745492348949,1.27288941,599.11,597.68,2.436]
[1745492350642,0.29084102,599.1,597.68,3.606]
[1745492351949,0.29084102,599.1,597.69,0.30718718]
[1745492352552,1.27288941,599.11,597.69,0.30718718]
[1745492353651,0.29084102,599.1,597.69,0.30718718]
[1745492354450,0.29084102,599.1,597.68,2.72684102]
[1745492355146,0.29084102,599.1,597.69,0.30719563]
[1745492355353,1.27288941,599.18,597.68,2.436]
[1745492356154,1.27288941,599.18,597.69,0.3072031]